fUST/lending_fUST_20250708
["ID","MTS","AMOUNT","RATE_DAILY","PERIOD"]
[370260834,1751927446265,-460.0,0.00019452,2]
[370260835,1751927446275,-151.0,0.00019452,2]
[370260836,1751927446284,-151.0,0.00019452,2]
[370260837,1751927446294,-879.45,0.00019452,2]
[370260838,1751927446304,-635.68,0.00019452,2]
[370260839,1751927446313,-151.0,0.00019452,2]
[370260840,1751927446322,-151.0,0.00019452,2]
[370260841,1751927446332,-151.0,0.00019452,2]
[370260842,1751927446341,-1975.47,0.00019452,2]
[370260843,1751927446352,-584.79,0.00019452,2]
[370260844,1751927446362,-460.0,0.00019452,2]
[370260845,1751927446374,-460.0,0.00019452,2]
[370260846,1751927446383,-460.0,0.00019452,2]
[370260847,1751927446393,-543.9,0.00019452,2]
[370260848,1751927446402,-460.0,0.00019452,2]
[370260849,1751927446412,-594.67,0.00019452,2]
[370260850,1751927446421,-460.0,0.00019452,2]
[370260851,1751927446431,-460.0,0.00019452,2]
[370260852,1751927446440,-789.88,0.00019452,2]
[370260853,1751927446450,-460.0,0.00019452,2]
[370260854,1751927446459,-460.0,0.00019452,2]
[370260855,1751927446468,-218.309447,0.00019452,2]
[370260856,1751927446478,-218.309447,0.00019452,2]
[370260857,1751927446489,-460.0,0.00019452,2]
[370260858,1751927446501,-230.71,0.00019452,2]
[370260859,1751927446510,-460.0,0.00019452,2]
[370260860,1751927446520,-218.309447,0.00019452,2]
[370260861,1751927446529,-218.309447,0.00019452,2]
[370260862,1751927446538,-460.0,0.00019452,2]
[370260863,1751927446548,-576.39252285,0.00019452,2]
[370260864,1751927446558,-460.0,0.00019452,2]
[370260865,1751927446567,-460.0,0.00019452,2]
[370260866,1751927446578,-460.0,0.00019452,2]
[370260867,1751927446589,-460.0,0.00019452,2]
[370260868,1751927446600,-915.21,0.00019452,2]
[370260869,1751927446609,-577.04091537,0.00019452,2]
[370260870,1751927446621,-460.0,0.00019452,2]
[370260871,1751927446631,-465.78,0.00019452,2]
[370260872,1751927446641,-460.0,0.00019452,2]
[370260873,1751927446652,-460.0,0.00019452,2]
[370260874,1751927446663,-460.0,0.00019452,2]
[370260875,1751927446673,-3256.25,0.00019452,2]
[370260876,1751927446683,-614.18,0.00019452,2]
[370260877,1751927446693,-460.0,0.00019452,2]
[370260878,1751927446702,-245.0,0.00019452,2]
[370260879,1751927446711,-151.0,0.00019452,2]
[370260880,1751927446720,-151.0,0.00019452,2]
[370260881,1751927446729,-460.0,0.00019452,2]
[370260882,1751927446738,-2256.97,0.00019452,2]
[370260883,1751927446747,-405.4949977,0.00019452,2]
[370260884,1751927446757,-460.0,0.00019452,2]
[370260885,1751927446766,-482.52216154,0.00019452,2]
[370260886,1751927446782,-67.70783846,0.00019452,2]
[370260887,1751927446792,-495.62,0.00019452,2]
[370260888,1751927446801,-29.00329396,0.00019452,2]
[370260889,1751927446814,-1332.66670604,0.00019452,2]
[370260890,1751927446823,-229.05,0.00019452,2]
[370260891,1751927446832,-151.0,0.00019452,2]
[370260892,1751927446841,-151.0,0.00019452,2]
[370260893,1751927446850,-584.53,0.00019452,2]
[370260894,1751927446859,-493.23,0.00019452,2]
[370260895,1751927446869,-83.87004937,0.00019452,2]
[370260896,1751927446880,-3681.14995063,0.00019452,2]
[370260897,1751927446890,-2159.42,0.00019452,2]
[370260898,1751927446900,-575.16,0.00019452,2]
[370260899,1751927446909,-460.0,0.00019452,2]
[370260900,1751927446918,-846.36,0.00019452,2]
[370260901,1751927446927,-460.0,0.00019452,2]
[370260902,1751927446937,-460.0,0.00019452,2]
[370260903,1751927446946,-460.0,0.00019452,2]
[370260904,1751927446955,-463.27550058,0.00019452,2]
[370260905,1751927446964,-560.0,0.00019452,2]
[370260906,1751927446974,-786.21,0.00019452,2]
[370260907,1751927446983,-460.0,0.00019452,2]
[370260908,1751927446992,-2143.03,0.00019452,2]
[370260909,1751927447001,-460.0,0.00019452,2]
[370260910,1751927447010,-460.0,0.00019452,2]
[370260911,1751927447020,-460.0,0.00019452,2]
[370260912,1751927447029,-460.0,0.00019452,2]
[370260913,1751927447038,-460.0,0.00019452,2]
[370260914,1751927447048,-2178.63,0.00019452,2]
[370260915,1751927447057,-460.0,0.00019452,2]
[370260916,1751927447067,-460.0,0.00019452,2]
[370260917,1751927447076,-700.64,0.00019452,2]
[370260918,1751927447085,-3631.47642145,0.00019452,2]
[370260919,1751927447097,-1302.3054421,0.00019452,2]
[370260920,1751927447245,-665.72813645,0.00019452,2]
[370260921,1751927447255,-460.0,0.00019452,2]
[370260922,1751927447265,-30.62143094,0.00019452,2]
[370260923,1751927447278,-1460.1979482,0.00019452,2]
[370260924,1751927447289,-2127.56062086,0.00019452,2]
[370260925,1751927447299,-366.4782688,0.00019452,2]
[370260926,1751927447308,-500.0,0.00019479,2]
[370260927,1751927447435,-500.0,0.00019507,2]
[370260928,1751927447446,-168.0,0.00019526,2]
[370260929,1751927447455,-500.0,0.00019534,2]
[370260930,1751927447466,-151.0,0.00019552,2]
[370260931,1751927447475,-477.0,0.00019561,2]
[370260932,1751927447486,-500.0,0.00019562,2]
[370260933,1751927447497,-175.471602,0.00019562,2]
[370260934,1751927447509,-188.26018,0.00019562,2]
[370260935,1751927447519,-151.0,0.00019562,2]
[370260936,1751927447528,-196.436759,0.00019562,2]
[370260937,1751927447539,-196.436759,0.00019562,2]
[370260938,1751927447548,-500.0,0.00019589,2]
[370260939,1751927447557,-500.0,0.00019616,2]
[370260940,1751927447567,-302.60665372,0.00019618,2]
[370260941,1751927447579,-500.0,0.00019644,2]
[370260942,1751927447589,-176.859324,0.00019661,2]
[370260943,1751927447598,-151.0,0.00019661,2]
[370260944,1751927447608,-500.0,0.00019671,2]
[370260945,1751927447618,-500.0,0.00019699,2]
[370260946,1751927447628,-153.0,0.00019699,2]
[370260947,1751927447637,-153.0,0.00019699,2]
[370260948,1751927447646,-153.0,0.00019699,2]
[370260949,1751927447656,-153.0,0.00019699,2]
[370260950,1751927447666,-153.0,0.00019699,2]
[370260951,1751927447675,-153.0,0.00019699,2]
[370260952,1751927447685,-1000.0,0.00019721,2]
[370260953,1751927447695,-500.0,0.00019721,2]
[370260954,1751927447706,-1000.0,0.00019721,2]
[370260955,1751927447716,-1000.0,0.00019721,2]
[370260956,1751927447726,-500.0,0.00019726,2]
[370260957,1751927447736,-151.0,0.00019726,2]
[370260958,1751927447747,-157.697755,0.00019726,2]
[370260959,1751927447758,-151.0,0.00019726,2]
[370260960,1751927447767,-151.0,0.00019726,2]
[370260961,1751927447777,-151.0,0.00019726,2]
[370260962,1751927447788,-151.0,0.00019726,2]
[370260963,1751927447799,-151.0,0.00019726,2]
[370260964,1751927447808,-176.859324,0.00019726,2]
[370260965,1751927447818,-151.0,0.00019726,2]
[370260966,1751927447828,-151.0,0.00019726,2]
[370260967,1751927447838,-151.0,0.00019726,2]
[370260968,1751927447848,-379.74537,0.00019726,2]
[370260969,1751927447858,-379.74537,0.00019726,2]
[370260970,1751927447867,-209.975876,0.00019726,2]
[370260971,1751927447877,-209.975876,0.00019726,2]
[370260972,1751927447886,-209.975876,0.00019726,2]
[370260973,1751927447896,-209.975876,0.00019726,2]
[370260974,1751927447906,-151.0,0.00019726,2]
[370260975,1751927447915,-151.0,0.00019726,2]
[370260976,1751927447925,-151.0,0.00019726,2]
[370260977,1751927447935,-151.0,0.00019726,2]
[370260978,1751927447944,-151.0,0.00019726,2]
[370260979,1751927447956,-807.848996,0.00019726,2]
[370260980,1751927447966,-460.0,0.00019726,2]
[370260981,1751927447976,-460.0,0.00019726,2]
[370260982,1751927447986,-151.0,0.00019726,2]
[370260983,1751927447996,-151.0,0.00019726,2]
[370260984,1751927448005,-151.0,0.00019726,2]
[370260985,1751927448014,-151.0,0.00019726,2]
[370260986,1751927448023,-151.0,0.00019726,2]
[370260987,1751927448033,-460.0,0.00019726,2]
[370260988,1751927448042,-151.0,0.00019726,2]
[370260989,1751927448051,-151.0,0.00019726,2]
[370260990,1751927448060,-460.0,0.00019726,2]
[370260991,1751927448070,-460.0,0.00019726,2]
[370260992,1751927448080,-1019.88,0.00019726,2]
[370260993,1751927448089,-151.0,0.00019726,2]
[370260994,1751927448099,-460.0,0.00019726,2]
[370260995,1751927448109,-151.0,0.00019726,2]
[370260996,1751927448118,-151.0,0.00019726,2]
[370260997,1751927448128,-460.0,0.00019726,2]
[370260998,1751927448137,-224.085569,0.00019726,2]
[370260999,1751927448147,-224.085569,0.00019726,2]
[370261000,1751927448157,-224.085569,0.00019726,2]
[370261001,1751927448167,-224.085569,0.00019726,2]
[370261002,1751927448176,-211.28605309,0.00019726,2]
[370261003,1751927448189,-248.71394691,0.00019726,2]
[370261004,1751927448199,-460.0,0.00019726,2]
[370261005,1751927448208,-460.0,0.00019726,2]
[370261006,1751927448218,-246.811581,0.00019726,2]
[370261007,1751927448227,-151.0,0.00019726,2]
[370261008,1751927448236,-460.0,0.00019726,2]
[370261009,1751927448246,-506.48685554,0.00019726,2]
[370261010,1751927448256,-460.0,0.00019726,2]
[370261011,1751927448265,-151.0,0.00019726,2]
[370261012,1751927448275,-151.0,0.00019726,2]
[370261013,1751927448284,-151.0,0.00019726,2]
[370261014,1751927448295,-151.0,0.00019726,2]
[370261015,1751927448305,-460.0,0.00019726,2]
[370261016,1751927448315,-460.0,0.00019726,2]
[370261017,1751927448325,-451.45410438,0.00019726,2]
[370261018,1751927448464,-8.54589562,0.00019726,2]
[370261019,1751927448474,-460.0,0.00019726,2]
[370261020,1751927448484,-564.71,0.00019726,2]
[370261021,1751927448495,-162.20410438,0.00019726,2]
[370261024,1751928180448,1706.0,0.00027397,120]
[370261025,1751928450081,-213.85606811,0.000189,2]
[370261071,1751928632645,-300.0,0.00018977,2]
[370261074,1751928632655,-300.0,0.00018977,2]
[370261075,1751928632664,-300.0,0.00018977,2]
[370261077,1751928632673,-219.2469847,0.00018977,2]
[370261087,1751928632716,-830.13352106,0.00018977,2]
[370261686,1751928638800,-150.61949424,0.00018977,2]
[370261688,1751928638809,-8194.57555083,0.00018978,2]
[370261870,1751928640773,-829.28017256,0.00018978,2]
[370261872,1751928640785,-406.5,0.00018978,2]
[370261879,1751928640841,-4005.5220599,0.00018978,2]
[370262415,1751928646627,-5173.324,0.00018978,2]
[370266143,1751928985151,2196.91382145,0.00025195,120]
[370266148,1751929469393,774.84744,0.00024657,120]
[370266156,1751929591104,-153.26451317,0.0001868,9]
[370266157,1751929591126,-0.00284138,0.00018868,2]
[370266158,1751929638077,-300.0,0.00018868,2]
[370266159,1751929638098,-300.0,0.00018869,2]
[370266160,1751929638118,-202.34641872,0.00018869,2]
[370266184,1751929832015,-1200.0,0.00018869,2]
[370266185,1751929832026,-1200.0,0.00018967,2]
[370266186,1751929832036,-300.0,0.00018985,2]
[370266187,1751929832046,-300.0,0.00018985,2]
[370266188,1751929832055,-218.0,0.00018985,2]
[370266189,1751929832065,-1190.89229297,0.00018986,2]
[370266190,1751929832075,-2568.16842966,0.00018986,2]
[370266191,1751929832085,-1526.0,0.00018988,2]
[370266192,1751929832094,-309.80806379,0.00019166,2]
[370266193,1751929832106,-209.76107889,0.00019166,2]
[370266194,1751929832116,-207.4,0.00019166,2]
[370266195,1751929832126,-23.73292114,0.00019168,3]
[370266196,1751929832138,-472.65707886,0.00019168,3]
[370266197,1751929832148,-248.19,0.00019168,3]
[370266198,1751929832157,-284.77992404,0.00019168,3]
[370266199,1751929832169,-459.84007596,0.00019168,3]
[370266200,1751929832178,-155.0,0.00019177,2]
[370266201,1751929832188,-460.0,0.00019178,2]
[370266202,1751929832198,-190.792456,0.00019178,2]
[370266203,1751929832208,-460.0,0.00019178,2]
[370266204,1751929832220,-460.0,0.00019178,2]
[370266205,1751929832229,-151.0,0.00019178,2]
[370266206,1751929832239,-151.0,0.00019178,2]
[370266207,1751929832249,-460.0,0.00019178,2]
[370266208,1751929832259,-414.26440547,0.00019178,2]
[370266209,1751929832268,-151.0,0.00019178,2]
[370266210,1751929832278,-151.0,0.00019178,2]
[370266211,1751929832288,-151.0,0.00019178,2]
[370266212,1751929832298,-151.663298,0.00019178,2]
[370266213,1751929832308,-460.0,0.00019178,2]
[370266214,1751929832318,-460.0,0.00019178,2]
[370266215,1751929832327,-174.647557,0.00019178,2]
[370266216,1751929832337,-174.647557,0.00019178,2]
[370266217,1751929832346,-174.647557,0.00019178,2]
[370266218,1751929832356,-174.647557,0.00019178,2]
[370266219,1751929832366,-174.647557,0.00019178,2]
[370266220,1751929832376,-174.647557,0.00019178,2]
[370266221,1751929832386,-393.522411,0.00019178,2]
[370266222,1751929832396,-393.522411,0.00019178,2]
[370266223,1751929832405,-393.522411,0.00019178,2]
[370266224,1751929832415,-393.522411,0.00019178,2]
[370266225,1751929832425,-393.522411,0.00019178,2]
[370266226,1751929832434,-393.522411,0.00019178,2]
[370266227,1751929832444,-460.0,0.00019178,2]
[370266228,1751929832454,-460.0,0.00019178,2]
[370266229,1751929832464,-167.980701,0.00019178,2]
[370266230,1751929832474,-167.980701,0.00019178,2]
[370266231,1751929832484,-167.980701,0.00019178,2]
[370266232,1751929832493,-167.980701,0.00019178,2]
[370266233,1751929832503,-151.0,0.00019178,2]
[370266234,1751929832513,-151.0,0.00019178,2]
[370266235,1751929832523,-151.0,0.00019178,2]
[370266236,1751929832534,-892.39,0.00019178,2]
[370266237,1751929832543,-460.0,0.00019178,2]
[370266238,1751929832553,-460.0,0.00019178,2]
[370266239,1751929832563,-460.0,0.00019178,2]
[370266240,1751929832573,-460.0,0.00019178,2]
[370266241,1751929832583,-460.0,0.00019178,2]
[370266242,1751929832592,-783.583846,0.00019178,2]
[370266243,1751929832602,-724.059094,0.00019178,2]
[370266244,1751929832615,-59.524752,0.00019178,2]
[370266245,1751929832625,-783.583846,0.00019178,2]
[370266246,1751929832635,-783.583846,0.00019178,2]
[370266247,1751929832646,-594.6763291,0.00019178,2]
[370266300,1751929837897,-398.73,0.000189,2]
[370266301,1751929837909,-678.4774833,0.000189,2]
[370266302,1751929837919,-500.0,0.00018985,2]
[370266303,1751929837929,-500.0,0.00018985,2]
[370266304,1751929837938,-338.96160216,0.00018985,2]
[370266305,1751929837948,-500.0,0.00018985,2]
[370266306,1751929837958,-242.38358194,0.00018985,2]
[370266319,1751929838123,-257.61641806,0.00018985,2]
[370266321,1751929838133,-500.0,0.00018985,2]
[370266323,1751929838142,-500.0,0.00018985,2]
[370266325,1751929838152,-500.0,0.00018985,2]
[370266327,1751929838161,-500.0,0.00018985,2]
[370266329,1751929838171,-500.0,0.00018985,2]
[370266331,1751929838180,-500.0,0.00018985,2]
[370266333,1751929838189,-500.0,0.00018985,2]
[370266335,1751929838198,-500.0,0.00018985,2]
[370266338,1751929838209,-500.0,0.00018985,2]
[370266340,1751929838221,-500.0,0.00018985,2]
[370266342,1751929838231,-500.0,0.00018985,2]
[370266343,1751929838241,-500.0,0.00018985,2]
[370266345,1751929838250,-500.0,0.00018985,2]
[370266347,1751929838259,-500.0,0.00018985,2]
[370266350,1751929838269,-500.0,0.00018985,2]
[370266352,1751929838278,-500.0,0.00018985,2]
[370266353,1751929838288,-500.0,0.00018985,2]
[370266355,1751929838298,-500.0,0.00018985,2]
[370266357,1751929838308,-500.0,0.00018985,2]
[370266359,1751929838317,-500.0,0.00018985,2]
[370266361,1751929838326,-500.0,0.00018985,2]
[370266363,1751929838336,-426.44202466,0.00018985,2]
[370266365,1751929838346,-500.0,0.00018985,2]
[370266367,1751929838355,-94.08173377,0.00018985,2]
[370268389,1751930284772,9031.55210433,0.00027397,120]
[370268390,1751930332562,158.38100996,0.00025193,120]
[370268392,1751930675736,153.65906107,0.00017803,2]
[370268398,1751930804104,-153.27765419,0.00018741,2]
[370268400,1751930853097,-763.45194063,0.00018741,2]
[370268404,1751930925330,150.999999,0.0002,120]
[370268405,1751930925660,301.999999,0.00025202,120]
[370268406,1751930938168,1501.0,0.00027397,120]
[370268436,1751931032085,-350.81342702,0.00018554,2]
[370268437,1751931032097,-4971.27040518,0.00018741,2]
[370268438,1751931032107,-1010.81773742,0.0001888,2]
[370268459,1751931038975,-189.18226258,0.0001888,2]
[370268460,1751931038986,-2869.38,0.00018881,2]
[370268461,1751931038996,-257.0,0.00018977,2]
[370268462,1751931039006,-300.0,0.00018977,2]
[370268463,1751931039017,-300.0,0.00018977,2]
[370268464,1751931039029,-1200.0,0.00018978,2]
[370268465,1751931039039,-351.22947134,0.00018985,2]
[370268466,1751931039050,-5888.0,0.00019038,2]
[370268467,1751931039061,-2488.46124574,0.00019038,2]
[370268468,1751931039072,-207.4,0.00019065,2]
[370268469,1751931039083,-690.642,0.00019065,2]
[370268470,1751931039093,-500.0,0.00019073,2]
[370268471,1751931039103,-500.0,0.00019073,2]
[370268472,1751931039113,-500.0,0.00019073,2]
[370268473,1751931039123,-500.0,0.00019073,2]
[370268474,1751931039133,-500.0,0.00019073,2]
[370268475,1751931039142,-500.0,0.00019073,2]
[370268476,1751931039151,-500.0,0.00019073,2]
[370268477,1751931039161,-500.0,0.00019073,2]
[370268478,1751931039170,-360.00000002,0.00019073,2]
[370268479,1751931039179,-500.0,0.00019073,2]
[370268480,1751931039189,-500.0,0.00019073,2]
[370268481,1751931039198,-500.0,0.00019073,2]
[370268482,1751931039207,-500.0,0.00019073,2]
[370268483,1751931039217,-293.28466821,0.00019073,2]
[370268484,1751931039354,-113.60726,0.00019073,2]
[370268485,1751931039363,-336.28426165,0.00019073,2]
[370268486,1751931039373,-342.64420247,0.00019073,2]
[370268487,1751931039383,-595.44614649,0.00019078,2]
[370268488,1751931039392,-1284.08421483,0.00019078,2]
[370268489,1751931039402,-1405.87209024,0.00019078,2]
[370268490,1751931039412,-11.3095296,0.00019078,2]
[370268491,1751931039424,-1152.90139576,0.00019078,2]
[370268492,1751931039447,-41113.50158355,0.00019078,2]
[370268510,1751931043229,-3576.63110114,0.00019078,2]
[370268511,1751931043240,-1217.88098543,0.00019078,2]
[370268512,1751931043267,-3408.83552278,0.00019078,2]
[370268513,1751931043276,-5888.0,0.00019103,2]
[370268514,1751931043286,-477.0,0.00019111,2]
[370268515,1751931043296,-477.0,0.00019112,2]
[370268516,1751931043305,-477.0,0.00019165,2]
[370268517,1751931043315,-248.19,0.00019168,3]
[370268518,1751931043324,-744.59,0.00019168,3]
[370268519,1751931043334,-500.0,0.00019173,2]
[370268520,1751931043343,-500.0,0.00019173,2]
[370268521,1751931043353,-500.0,0.00019173,2]
[370268522,1751931043362,-455.08858186,0.00019177,2]
[370268523,1751931043372,-500.0,0.00019177,2]
[370268524,1751931043382,-500.0,0.00019177,2]
[370268525,1751931043391,-500.0,0.00019177,2]
[370268526,1751931043401,-500.0,0.00019177,2]
[370268527,1751931043411,-500.0,0.00019177,2]
[370268528,1751931043421,-500.0,0.00019177,2]
[370268529,1751931043430,-500.0,0.00019177,2]
[370268530,1751931043440,-500.0,0.00019177,2]
[370268531,1751931043449,-500.0,0.00019177,2]
[370268532,1751931043459,-500.0,0.00019177,2]
[370268533,1751931043468,-511.37137108,0.00019177,2]
[370268534,1751931043478,-500.0,0.00019177,2]
[370268535,1751931043487,-500.0,0.00019177,2]
[370268536,1751931043500,-500.0,0.00019177,2]
[370268537,1751931043510,-500.0,0.00019177,2]
[370268538,1751931043520,-151.0,0.00019178,2]
[370268539,1751931043529,-151.0,0.00019178,2]
[370268540,1751931043539,-151.0,0.00019178,2]
[370268541,1751931043548,-156.859898,0.00019178,2]
[370268542,1751931043558,-156.859898,0.00019178,2]
[370268543,1751931043567,-156.859898,0.00019178,2]
[370268544,1751931043577,-156.859898,0.00019178,2]
[370268545,1751931043587,-245.373361,0.00019178,2]
[370268546,1751931043596,-506.0,0.00019178,2]
[370268547,1751931043606,-460.0,0.00019178,2]
[370268548,1751931043616,-460.0,0.00019178,2]
[370268549,1751931043625,-151.0,0.00019178,2]
[370268550,1751931043635,-151.0,0.00019178,2]
[370268551,1751931043644,-151.0,0.00019178,2]
[370268552,1751931043653,-301.999999,0.00019178,2]
[370268553,1751931043663,-151.0,0.00019178,2]
[370268554,1751931043673,-151.0,0.00019178,2]
[370268555,1751931043683,-151.0,0.00019178,2]
[370268556,1751931043692,-259.534988,0.00019178,2]
[370268557,1751931043703,-259.534988,0.00019178,2]
[370268558,1751931043712,-259.534988,0.00019178,2]
[370268559,1751931043722,-259.534988,0.00019178,2]
[370268560,1751931043731,-259.534988,0.00019178,2]
[370268561,1751931043740,-259.534988,0.00019178,2]
[370268562,1751931043750,-506.90103555,0.00019178,2]
[370268563,1751931043759,-540.0,0.00019178,2]
[370268564,1751931043769,-460.0,0.00019178,2]
[370268565,1751931043779,-151.0,0.00019178,2]
[370268566,1751931043788,-151.0,0.00019178,2]
[370268567,1751931043797,-151.0,0.00019178,2]
[370268568,1751931043811,-163.680107,0.00019178,2]
[370268569,1751931043821,-460.0,0.00019178,2]
[370268570,1751931043830,-460.0,0.00019178,2]
[370268571,1751931043839,-151.0,0.00019178,2]
[370268572,1751931043848,-151.0,0.00019178,2]
[370268573,1751931043858,-151.0,0.00019178,2]
[370268574,1751931043867,-151.0,0.00019178,2]
[370268575,1751931043877,-493.27727222,0.00019178,2]
[370268576,1751931043886,-151.0,0.00019178,2]
[370268577,1751931043895,-157.149407,0.00019178,2]
[370268578,1751931043905,-157.149407,0.00019178,2]
[370268579,1751931043915,-157.149407,0.00019178,2]
[370268580,1751931043924,-157.149407,0.00019178,2]
[370268581,1751931043934,-157.149407,0.00019178,2]
[370268582,1751931043943,-157.149407,0.00019178,2]
[370268583,1751931043953,-157.149407,0.00019178,2]
[370268584,1751931043962,-157.149407,0.00019178,2]
[370268585,1751931043971,-151.0,0.00019178,2]
[370268586,1751931043981,-460.0,0.00019178,2]
[370268587,1751931043990,-151.0,0.00019178,2]
[370268588,1751931044000,-181.823392,0.00019178,2]
[370268589,1751931044009,-181.823392,0.00019178,2]
[370268590,1751931044019,-181.823392,0.00019178,2]
[370268591,1751931044028,-181.823392,0.00019178,2]
[370268592,1751931044037,-181.823392,0.00019178,2]
[370268593,1751931044046,-181.823392,0.00019178,2]
[370268594,1751931044055,-181.823392,0.00019178,2]
[370268595,1751931044065,-181.823392,0.00019178,2]
[370268596,1751931044076,-151.0,0.00019178,2]
[370268597,1751931044085,-151.0,0.00019178,2]
[370268598,1751931044095,-151.0,0.00019178,2]
[370268599,1751931044104,-151.0,0.00019178,2]
[370268600,1751931044115,-151.0,0.00019178,2]
[370268601,1751931044125,-205.512954,0.00019178,2]
[370268602,1751931044135,-386.98819374,0.00019178,2]
[370268603,1751931044145,-460.0,0.00019178,2]
[370268604,1751931044155,-460.0,0.00019178,2]
[370268605,1751931044164,-460.0,0.00019178,2]
[370268606,1751931044174,-151.0,0.00019178,2]
[370268607,1751931044184,-207.16811129,0.00019178,2]
[370268608,1751931044194,-460.0,0.00019178,2]
[370268609,1751931044204,-460.0,0.00019178,2]
[370268610,1751931044214,-460.0,0.00019178,2]
[370268611,1751931044224,-460.0,0.00019178,2]
[370268612,1751931044235,-573.11,0.00019178,2]
[370268613,1751931044245,-460.0,0.00019178,2]
[370268614,1751931044255,-165.18989868,0.00019178,2]
[370268615,1751931044265,-151.0,0.00019178,2]
[370268616,1751931044275,-263.781513,0.00019178,2]
[370268617,1751931044285,-460.0,0.00019178,2]
[370268618,1751931044296,-460.0,0.00019178,2]
[370268619,1751931044306,-460.0,0.00019178,2]
[370268620,1751931044315,-460.0,0.00019178,2]
[370268621,1751931044324,-460.0,0.00019178,2]
[370268622,1751931044334,-460.0,0.00019178,2]
[370268623,1751931044343,-460.0,0.00019178,2]
[370268624,1751931044353,-151.0,0.00019178,2]
[370268625,1751931044363,-151.0,0.00019178,2]
[370268626,1751931044373,-151.0,0.00019178,2]
[370268627,1751931044383,-151.0,0.00019178,2]
[370268628,1751931044392,-151.0,0.00019178,2]
[370268629,1751931044403,-151.0,0.00019178,2]
[370268630,1751931044413,-151.0,0.00019178,2]
[370268631,1751931044423,-151.0,0.00019178,2]
[370268632,1751931044435,-460.0,0.00019178,2]
[370268633,1751931044445,-460.0,0.00019178,2]
[370268634,1751931044455,-460.0,0.00019178,2]
[370268635,1751931044465,-460.0,0.00019178,2]
[370268636,1751931044474,-460.0,0.00019178,2]
[370268637,1751931044484,-460.0,0.00019178,2]
[370268638,1751931044494,-151.0,0.00019178,2]
[370268639,1751931044506,-151.0,0.00019178,2]
[370268640,1751931044517,-151.0,0.00019178,2]
[370268641,1751931044532,-460.0,0.00019178,2]
[370268642,1751931044542,-621.653873,0.00019178,2]
[370268643,1751931044554,-621.653873,0.00019178,2]
[370268644,1751931044564,-621.653873,0.00019178,2]
[370268645,1751931044574,-621.653873,0.00019178,2]
[370268646,1751931044585,-460.0,0.00019178,2]
[370268647,1751931044595,-621.653873,0.00019178,2]
[370268648,1751931044607,-621.653873,0.00019178,2]
[370268649,1751931044617,-621.653873,0.00019178,2]
[370268650,1751931044627,-621.653873,0.00019178,2]
[370268651,1751931044636,-460.0,0.00019178,2]
[370268652,1751931044646,-460.0,0.00019178,2]
[370268653,1751931044656,-151.0,0.00019178,2]
[370268654,1751931044666,-460.0,0.00019178,2]
[370268655,1751931044675,-460.0,0.00019178,2]
[370268656,1751931044686,-151.0,0.00019178,2]
[370268657,1751931044698,-151.0,0.00019178,2]
[370268658,1751931044708,-151.0,0.00019178,2]
[370268659,1751931044718,-681.25,0.00019178,2]
[370268660,1751931044728,-460.0,0.00019178,2]